bitfinex-derivatives/quotes_BTCF0:USTF0_20241120
["timestamp","ask_amount","ask_price","bid_price","bid_amount"]
[1732137143267,0.053096,94089.0,94076.0,0.0306]
[1732137143473,0.053096,94089.0,94081.0,0.10122239]
[1732137143678,0.43653951,94093.0,94081.0,0.10122239]
[1732137143997,0.48134084,94093.0,94081.0,0.10122239]
[1732137144207,0.053095,94091.0,94081.0,0.10122239]
[1732137144570,0.053095,94091.0,94089.0,0.053095]
[1732137144964,0.053095,94090.0,94089.0,0.053095]
[1732137145870,0.053096,94089.0,94080.0,0.0531]
[1732137146072,0.3608,94081.0,94076.0,0.0306]
[1732137146466,0.053102,94077.0,94076.0,0.053103]
[1732137146974,0.01025879,94077.0,94076.0,0.053103]
[1732137147164,0.3608,94081.0,94076.0,0.053103]
[1732137147367,0.3608,94081.0,94080.0,0.053101]
[1732137147566,0.37100533,94081.0,94080.0,0.053101]
[1732137147875,0.3608,94081.0,94080.0,0.053101]
[1732137148265,0.37103504,94081.0,94080.0,0.053101]
[1732137148469,0.3608,94081.0,94080.0,0.053101]
[1732137148973,0.4139,94081.0,94080.0,0.053101]
[1732137149864,0.42414195,94081.0,94080.0,0.053101]
[1732137150066,0.4139,94081.0,94080.0,0.053101]
[1732137150984,0.42410535,94081.0,94080.0,0.053101]
[1732137151468,0.053105,94076.0,94075.0,0.053103]
[1732137151668,0.053105,94076.0,94058.0,0.10122239]
[1732137151669,0.053106,94073.0,94072.0,0.053104]
[1732137151970,0.06332924,94073.0,94072.0,0.053104]
[1732137152276,0.053106,94073.0,94072.0,0.053104]
[1732137152477,0.06330565,94073.0,94072.0,0.053104]
[1732137152683,0.06330565,94073.0,94072.0,0.061604]
[1732137153580,0.053106,94073.0,94072.0,0.061604]
[1732137155280,0.06333296,94073.0,94072.0,0.061604]
[1732137155590,0.06333176,94073.0,94072.0,0.061604]
[1732137155970,0.0633309,94073.0,94072.0,0.061604]
[1732137156484,0.053106,94073.0,94072.0,0.061604]
[1732137157270,0.06334069,94073.0,94072.0,0.061604]
[1732137157873,0.01023469,94073.0,94072.0,0.061604]
[1732137158978,0.3608,94087.0,94072.0,0.061604]
[1732137158979,0.3608,94087.0,94072.0,0.0085]
[1732137159185,0.053103,94077.0,94076.0,0.053103]
[1732137159480,0.06334518,94077.0,94076.0,0.053103]
[1732137162273,0.06334518,94077.0,94072.0,0.0085]
[1732137162488,0.053105,94073.0,94072.0,0.0085]
[1732137162784,0.06334718,94073.0,94072.0,0.061605]
[1732137165073,0.06334718,94073.0,94072.0,0.0085]
[1732137165278,0.43389656,94073.0,94072.0,0.0085]
[1732137165480,0.053112,94061.0,94060.0,0.053111]
[1732137165687,0.053112,94059.0,94058.0,0.0304]
[1732137165882,0.06332074,94059.0,94058.0,0.0304]
[1732137166984,0.06332074,94059.0,94058.0,0.083513]
[1732137168174,0.053112,94059.0,94058.0,0.083513]
[1732137170589,0.053112,94059.0,94058.0,0.10011184]
[1732137170790,0.15835432,94067.0,94058.0,0.14822123]
[1732137170978,0.51915432,94074.0,94066.0,0.10122239]
[1732137171177,0.3608,94074.0,94073.0,0.053105]
[1732137171380,0.3608,94074.0,94073.0,0.06970065]
[1732137174486,0.3608,94074.0,94073.0,0.07820065]
[1732137175081,0.3608,94074.0,94073.0,0.061605]
[1732137176388,0.3608,94074.0,94073.0,0.07820039]
[1732137177092,0.3608,94074.0,94073.0,0.061605]
[1732137185199,0.3608,94074.0,94049.0,0.38204087]
[1732137185200,0.3608,94074.0,94059.0,0.0327]
[1732137185394,0.3608,94074.0,94073.0,0.053105]
[1732137186391,0.413904,94074.0,94073.0,0.053105]
[1732137187402,0.053108,94068.0,94063.0,0.05311]
[1732137187705,0.053108,94068.0,94067.0,0.053108]
[1732137188298,0.06309685,94068.0,94067.0,0.053108]
[1732137189489,0.053108,94068.0,94067.0,0.053108]
[1732137190197,0.053108,94068.0,94067.0,0.061608]
[1732137192495,0.053108,94068.0,94067.0,0.0085]
[1732137193800,0.053108,94068.0,94067.0,0.061608]
[1732137194596,0.053108,94068.0,94067.0,0.0085]
[1732137198105,0.09969417,94068.0,94067.0,0.0085]
[1732137200293,0.15132751,94068.0,94067.0,0.0085]
[1732137203201,0.25940751,94068.0,94067.0,0.0085]
[1732137204495,0.36601568,94068.0,94067.0,0.0085]
[1732137204699,0.36601305,94068.0,94067.0,0.0085]
[1732137204897,0.20777417,94068.0,94067.0,0.0085]
[1732137205300,0.161188,94068.0,94067.0,0.061608]
[1732137205505,0.161188,94068.0,94067.0,0.070108]
[1732137205506,0.053108,94068.0,94067.0,0.070108]
[1732137213316,0.21135048,94068.0,94067.0,0.070108]
[1732137213829,0.51904248,94071.0,94067.0,0.070108]
[1732137214114,0.413906,94071.0,94070.0,0.053106]
[1732137214518,0.57233781,94071.0,94070.0,0.053106]
[1732137214911,0.46553542,94071.0,94070.0,0.053106]
[1732137215110,0.46553542,94071.0,94067.0,0.017]
[1732137215314,0.2115538,94068.0,94067.0,0.070108]
[1732137215510,0.10473879,94068.0,94067.0,0.070108]
[1732137216807,0.10473879,94068.0,94067.0,0.017]
[1732137221013,0.24313219,94068.0,94067.0,0.017]
[1732137221209,0.29476398,94068.0,94067.0,0.017]
[1732137221817,0.10473879,94068.0,94067.0,0.017]
[1732137222120,0.10473879,94068.0,94067.0,0.070108]
[1732137222620,0.053107,94068.0,94067.0,0.070108]
[1732137222920,0.29476398,94068.0,94067.0,0.017]
[1732137223326,0.10473879,94068.0,94067.0,0.017]
[1732137224720,0.24313219,94068.0,94067.0,0.017]
[1732137224918,0.29476398,94068.0,94067.0,0.017]
[1732137226323,0.10473879,94068.0,94067.0,0.017]
[1732137226622,0.29476398,94068.0,94067.0,0.017]
[1732137227227,0.10473879,94068.0,94067.0,0.017]
[1732137227737,0.05163179,94068.0,94067.0,0.17133039]
[1732137227927,0.053107,94069.0,94068.0,0.053107]
[1732137228131,0.10473715,94069.0,94068.0,0.053107]
[1732137228628,0.10473717,94069.0,94068.0,0.053107]
[1732137229224,0.053107,94069.0,94068.0,0.053107]
[1732137229427,0.10473717,94069.0,94068.0,0.053107]
[1732137229625,0.29476236,94069.0,94058.0,0.0304]
[1732137229824,0.053112,94060.0,94059.0,0.053112]
[1732137231129,0.21171068,94060.0,94059.0,0.053112]
[1732137231430,0.053112,94060.0,94059.0,0.053112]
[1732137231725,0.21171068,94060.0,94059.0,0.053802]
[1732137234027,0.21171068,94060.0,94059.0,0.12141317]
[1732137234728,0.053112,94060.0,94059.0,0.12141317]
[1732137235126,0.21171068,94060.0,94059.0,0.12141317]
[1732137235527,0.053112,94060.0,94059.0,0.12141317]
[1732137236135,0.52087868,94062.0,94059.0,0.12141317]
[1732137236323,0.3608,94062.0,94061.0,0.053111]
[1732137236628,0.3608,94062.0,94061.0,0.12072217]
[1732137236822,0.15859868,94068.0,94061.0,0.053111]
[1732137237025,0.15859868,94068.0,94067.0,0.053108]
[1732137237333,0.51939868,94070.0,94067.0,0.06761117]
[1732137237517,0.51939868,94070.0,94069.0,0.12071817]
[1732137238022,0.51939868,94070.0,94069.0,0.053107]
[1732137238224,0.3608,94070.0,94069.0,0.053107]
[1732137238741,0.3608,94070.0,94069.0,0.15427613]
[1732137241933,0.053102,94078.0,94069.0,0.15427613]
[1732137241934,0.15859868,94075.0,94074.0,0.053104]
[1732137242431,0.04562233,94079.0,94070.0,0.0329]
[1732137242432,0.15859868,94079.0,94070.0,0.0329]
[1732137242655,0.3608,94081.0,94080.0,0.053101]
[1732137243033,0.15859868,94087.0,94080.0,0.053101]
[1732137243335,0.3608,94090.0,94089.0,0.053096]
[1732137248429,0.3608,94090.0,94089.0,0.061596]
[1732137248942,0.413895,94090.0,94089.0,0.061596]
[1732137253850,0.51506413,94090.0,94089.0,0.0085]
[1732137254034,0.413895,94090.0,94089.0,0.0085]
[1732137255841,0.413895,94090.0,94089.0,0.061596]
[1732137257237,0.413895,94090.0,94074.0,0.04748456]
[1732137257238,0.053126,94035.0,94020.0,0.053134]
[1732137257439,0.053126,94035.0,94010.0,0.10116913]
[1732137257440,0.46196913,94035.0,94010.0,0.10116913]
[1732137257640,0.46196913,94035.0,94007.0,0.3608]
[1732137257641,0.053131,94026.0,94018.0,0.053135]
[1732137257946,0.3608,94035.0,94008.0,1.5]
[1732137257947,0.053129,94031.0,94024.0,0.10116913]
[1732137258344,7.977e-05,94030.0,94024.0,0.10116913]
[1732137258733,7.977e-05,94030.0,94024.0,0.15430113]
[1732137258931,0.01008437,94029.0,94025.0,0.0085]
[1732137259131,0.01008437,94028.0,94025.0,0.0085]
[1732137259331,7.977e-05,94030.0,94025.0,0.0085]
[1732137259537,0.01008398,94027.0,94025.0,0.0085]
[1732137259744,0.01008398,94026.0,94025.0,0.0085]
[1732137260445,0.06321498,94026.0,94025.0,0.0085]
[1732137261240,0.06321498,94026.0,94025.0,0.0095]
[1732137261945,0.06421498,94026.0,94025.0,0.0115]
[1732137262148,0.06521498,94026.0,94025.0,0.0115]
[1732137262639,0.055131,94026.0,94025.0,0.0115]
[1732137262834,0.06520788,94026.0,94025.0,0.0115]
[1732137263051,0.055131,94026.0,94025.0,0.0115]
[1732137263236,0.06521179,94026.0,94025.0,0.0115]
[1732137263647,0.11688883,94026.0,94025.0,0.0115]
[1732137263849,0.14788883,94026.0,94025.0,0.0115]
[1732137264147,0.19738092,94026.0,94025.0,0.0115]
[1732137264549,0.24529727,94026.0,94025.0,0.0115]
[1732137264745,0.24429727,94026.0,94025.0,0.0105]
[1732137264941,0.24329727,94026.0,94025.0,0.0085]
[1732137265946,0.23321648,94026.0,94025.0,0.0085]
[1732137266152,0.24331921,94026.0,94025.0,0.0085]
[1732137268047,0.053135,94019.0,94018.0,0.00013734]
[1732137268256,0.51510413,94019.0,94018.0,0.00013734]
[1732137269345,0.42409049,94019.0,94018.0,0.00013734]
[1732137269540,0.413935,94019.0,94018.0,0.00013734]
[1732137273850,0.3608,94019.0,94018.0,0.00013734]
[1732137274151,0.053134,94022.0,94021.0,0.053134]
[1732137274448,0.053134,94020.0,94019.0,0.0628]
[1732137274649,0.053134,94020.0,94018.0,0.00013734]
[1732137274650,0.053135,94019.0,94018.0,0.00013734]
[1732137274856,0.413935,94019.0,94018.0,0.00013734]
[1732137276552,0.413935,94019.0,94018.0,0.05327334]
[1732137276752,0.053132,94024.0,94023.0,0.053131]
[1732137283555,0.07438908,94024.0,94023.0,0.053131]
[1732137283749,0.02125708,94024.0,94023.0,0.053131]
[1732137284466,0.04608147,94031.0,94018.0,0.00013734]
[1732137284467,0.15714642,94040.0,94029.0,0.053129]
[1732137284760,0.0098,94049.0,94042.0,0.053122]
[1732137284964,0.00140001,94049.0,94042.0,0.413922]
[1732137285162,0.04670557,94054.0,94042.0,0.413922]
[1732137285668,0.02285127,94043.0,94042.0,0.413922]
[1732137286161,0.00159555,94043.0,94042.0,0.413922]
[1732137286554,0.01155252,94043.0,94042.0,0.413922]
[1732137287953,0.01155252,94043.0,94042.0,0.446522]
[1732137289069,0.01163744,94043.0,94042.0,0.446522]
[1732137289464,0.00159555,94043.0,94042.0,0.49420557]
[1732137289665,0.0116371,94043.0,94042.0,0.49420557]
[1732137290466,0.00159555,94043.0,94042.0,0.49420557]
[1732137290854,0.0098,94062.0,94050.0,0.053117]
[1732137291059,0.10724,94080.0,94061.0,0.10116913]
[1732137291060,0.15714642,94069.0,94061.0,0.10116913]
[1732137291254,0.01002791,94068.0,94067.0,0.15427713]
[1732137291461,0.01002363,94068.0,94067.0,0.15427713]
[1732137292460,0.3608,94076.0,94067.0,0.15427713]
[1732137292664,0.053097,94086.0,94075.0,0.053103]
[1732137292868,0.053097,94086.0,94085.0,0.053098]
[1732137293159,0.06324199,94086.0,94085.0,0.053098]
[1732137294861,0.10889112,94086.0,94085.0,0.053098]
[1732137295666,0.09874613,94086.0,94085.0,0.053098]
[1732137295864,0.13017128,94086.0,94085.0,0.053098]
[1732137296171,0.13017143,94086.0,94085.0,0.053098]
[1732137296671,0.07707443,94086.0,94085.0,0.053098]
[1732137297463,0.0314253,94086.0,94085.0,0.053098]
[1732137298067,0.0845223,94086.0,94085.0,0.053098]
[1732137300772,0.0845223,94086.0,94080.0,0.10116913]
[1732137300983,0.07434235,94086.0,94080.0,0.10116913]
[1732137301275,0.0331,94093.0,94085.0,0.053098]
[1732137301469,0.3608,94094.0,94093.0,0.053093]
[1732137302165,0.38203891,94094.0,94087.0,0.02786521]
[1732137302369,0.38203891,94094.0,94093.0,0.053093]
[1732137302566,0.38203891,94094.0,94093.0,0.15426213]
[1732137304179,0.3608,94094.0,94093.0,0.15426213]
[1732137306882,0.05309,94091.0,94090.0,0.05309]
[1732137307276,0.3608,94094.0,94092.0,0.053088]
[1732137307876,0.3608,94094.0,94088.0,0.14004]
[1732137307877,0.3608,94094.0,94093.0,0.053088]
[1732137308073,0.413887,94094.0,94093.0,0.053088]
[1732137308586,0.3608,94094.0,94093.0,0.15425713]
[1732137309988,0.00148,94099.0,94098.0,0.053085]
[1732137310175,0.3608,94111.0,94110.0,0.053078]
[1732137310383,0.3608,94111.0,94110.0,0.15424713]
[1732137311685,0.3608,94111.0,94110.0,0.16274713]
[1732137312873,0.3608,94111.0,94110.0,0.20896788]
[1732137313790,0.3608,94122.0,94121.0,0.053072]
[1732137314084,0.3608,94122.0,94121.0,0.15424113]
[1732137314290,0.0049,94139.0,94131.0,0.053067]
[1732137314291,0.3608,94138.0,94131.0,0.053067]
[1732137314501,0.0317,94141.0,94140.0,0.053061]
[1732137314790,0.24196533,94149.0,94136.0,0.10116913]
[1732137314791,0.15792646,94146.0,94136.0,0.10116913]
[1732137314988,0.053057,94149.0,94148.0,0.053057]
[1732137314989,0.04663686,94149.0,94148.0,0.053057]
[1732137315177,0.02124535,94150.0,94145.0,0.10116913]
[1732137315377,0.053055,94151.0,94149.0,0.053056]
[1732137315777,0.053055,94151.0,94145.0,0.10116913]
[1732137315778,0.053056,94149.0,94145.0,0.10116913]
[1732137315977,0.053056,94149.0,94146.0,0.053058]
[1732137316484,0.3608,94152.0,94145.0,0.10116913]
[1732137316686,0.053057,94148.0,94145.0,0.10116913]
[1732137316878,0.3608,94152.0,94147.0,0.053057]
[1732137317085,0.084754,94153.0,94149.0,0.053056]
[1732137317280,0.084754,94153.0,94150.0,0.053056]
[1732137317501,0.084754,94153.0,94145.0,0.10116913]
[1732137317809,0.084754,94153.0,94152.0,0.053055]
[1732137318986,0.053057,94148.0,94147.0,0.053057]
[1732137319881,0.41525401,94153.0,94151.0,0.053055]
[1732137320081,0.413854,94153.0,94152.0,0.053055]
[1732137322376,0.3608,94153.0,94152.0,0.053055]
[1732137324083,0.36228,94161.0,94152.0,0.053055]
[1732137324084,0.36228,94161.0,94160.0,0.05305]
[1732137324287,0.36228,94161.0,94160.0,0.10116913]
[1732137324288,0.3608,94161.0,94160.0,0.10116913]
[1732137324485,0.3608,94161.0,94160.0,0.15421913]
[1732137324785,0.053049,94162.0,94161.0,0.05305]
[1732137325186,0.053057,94148.0,94147.0,0.04719965]
[1732137325489,0.053057,94147.0,94146.0,1.660058]
[1732137325688,0.053057,94147.0,94146.0,0.053058]
[1732137326284,0.0100569,94147.0,94137.0,0.10116913]
[1732137326596,0.413853,94156.0,94137.0,0.10116913]
[1732137326597,0.053059,94145.0,94144.0,0.4072419]
[1732137326779,0.053059,94145.0,94126.0,0.0318]
[1732137326982,0.3608,94135.0,94126.0,0.0318]
[1732137327181,0.3608,94135.0,94125.0,0.15583268]
[1732137327585,0.01019746,94134.0,94125.0,0.15583268]
[1732137327786,0.053069,94127.0,94126.0,0.053069]
[1732137328378,0.06338132,94127.0,94126.0,0.053069]
[1732137330792,0.01031232,94127.0,94124.0,0.10116913]
[1732137330983,0.05307,94125.0,94124.0,0.10116913]
[1732137331184,0.06338232,94125.0,94124.0,0.10116913]
[1732137331384,0.06354979,94125.0,94124.0,0.15423913]
[1732137331887,0.063552,94125.0,94124.0,0.15423913]
[1732137332684,0.063552,94125.0,94124.0,0.10116913]
[1732137333084,0.063552,94125.0,94115.0,0.13366913]
[1732137333085,0.053075,94116.0,94115.0,0.13366913]
[1732137333393,0.053075,94116.0,94115.0,0.10116913]
[1732137333594,0.06349679,94116.0,94115.0,0.10116913]
[1732137334684,0.053075,94116.0,94115.0,0.10116913]
[1732137334891,0.06346074,94116.0,94115.0,0.10116913]
[1732137335885,0.06346074,94116.0,94115.0,0.15424513]
[1732137336090,0.06346074,94116.0,94115.0,0.10116913]
[1732137336287,0.06346074,94116.0,94115.0,0.51504513]
[1732137337096,0.3608,94130.0,94115.0,0.78072913]
[1732137337398,0.3608,94146.0,94115.0,0.78072913]
[1732137337399,0.00140001,94134.0,94133.0,0.053065]
[1732137337591,0.053065,94135.0,94133.0,0.15423413]
[1732137337903,0.032,94150.0,94133.0,0.10116913]
[1732137337904,0.053065,94134.0,94133.0,0.10116913]
[1732137339197,0.15792646,94143.0,94142.0,0.05306]
[1732137339389,0.15792646,94143.0,94133.0,0.10116913]
[1732137339390,0.053059,94145.0,94143.0,0.10116913]
[1732137339585,0.053059,94145.0,94144.0,0.053059]
[1732137343203,0.21098546,94145.0,94144.0,0.053059]
[1732137343598,0.053059,94145.0,94144.0,0.053059]
[1732137345195,0.15792646,94147.0,94146.0,0.053058]
[1732137345506,0.053057,94147.0,94146.0,0.053058]
[1732137347304,0.053057,94147.0,94144.0,0.00267662]
[1732137347815,0.053057,94147.0,94146.0,0.053058]
[1732137348199,0.17915165,94152.0,94144.0,0.00267662]
[1732137348200,0.15792646,94151.0,94144.0,0.00267662]
[1732137348504,0.07428019,94152.0,94151.0,0.053055]
[1732137348804,0.053055,94152.0,94151.0,0.053055]
[1732137349205,0.01021529,94152.0,94151.0,0.15422413]
[1732137351707,0.15792646,94165.0,94164.0,0.053048]
[1732137351907,0.15792646,94166.0,94164.0,0.053048]
[1732137352111,0.06321337,94165.0,94164.0,0.053048]
[1732137352412,0.01016651,94165.0,94164.0,0.053048]
[1732137353302,0.053047,94166.0,94164.0,0.053048]
[1732137353504,0.053047,94165.0,94164.0,0.053048]
[1732137354301,0.0630426,94165.0,94164.0,0.053048]
[1732137355506,0.0099956,94165.0,94164.0,0.053048]
[1732137357210,0.36228,94168.0,94167.0,0.053046]
[1732137357416,0.01008918,94168.0,94167.0,0.15421513]
[1732137357912,0.04763157,94173.0,94172.0,0.053043]
[1732137358100,0.01008943,94173.0,94168.0,0.053046]
[1732137358300,0.01008943,94172.0,94167.0,0.10116913]
[1732137358502,0.06313343,94172.0,94171.0,0.053044]
[1732137358702,0.06308495,94172.0,94171.0,0.053044]
[1732137360110,0.01004095,94172.0,94171.0,0.053044]
[1732137360915,0.36224,94187.0,94181.0,0.053038]
[1732137361211,0.08912145,94182.0,94181.0,0.053038]
[1732137361412,0.085538,94182.0,94181.0,0.053038]
[1732137363609,0.0475323,94187.0,94183.0,0.053037]
[1732137363912,0.07426219,94184.0,94183.0,0.053037]
[1732137364508,0.053035,94188.0,94187.0,0.053033]
[1732137364707,0.46085549,94191.0,94190.0,0.053033]
[1732137364912,0.45945548,94191.0,94190.0,0.053033]
[1732137365217,0.40642148,94191.0,94190.0,0.053033]
[1732137365410,0.43760619,94191.0,94190.0,0.053033]
[1732137365614,0.11987233,94191.0,94190.0,0.053033]
[1732137366015,0.06683933,94191.0,94190.0,0.053033]
[1732137366216,0.02121785,94191.0,94190.0,0.053033]
[1732137366618,0.033,94195.0,94190.0,0.053033]
[1732137366823,0.48202519,94200.0,94199.0,0.053028]
[1732137366824,0.1756532,94200.0,94199.0,0.053028]
[1732137367128,0.11001026,94200.0,94199.0,0.15419713]
[1732137367309,0.1,94200.0,94199.0,0.15419713]
[1732137373421,0.1,94200.0,94199.0,0.2016136]
[1732137374611,0.1,94200.0,94199.0,0.10044447]
[1732137374811,0.1,94200.0,94196.0,0.3608]
[1732137375017,0.1,94200.0,94180.0,0.00159252]
[1732137375018,0.053038,94181.0,94180.0,0.00159252]
[1732137376231,0.053038,94181.0,94180.0,0.05463152]
[1732137376723,0.053035,94187.0,94186.0,0.053035]
[1732137377626,0.06311514,94187.0,94186.0,0.053035]
[1732137377923,0.01008014,94187.0,94186.0,0.053035]
[1732137378628,0.06311514,94187.0,94186.0,0.053035]
[1732137379523,0.01008014,94187.0,94186.0,0.053035]
[1732137380427,0.01008014,94187.0,94185.0,0.10116913]
[1732137380428,0.13267466,94196.0,94194.0,0.053031]
[1732137380619,0.06330772,94195.0,94194.0,0.053031]
[1732137380826,0.05303,94195.0,94194.0,0.053031]
[1732137381021,0.06330778,94195.0,94194.0,0.053031]
[1732137381332,0.06330778,94195.0,94191.0,0.10116913]
[1732137381333,0.053032,94192.0,94191.0,0.10116913]
[1732137381720,0.0633124,94192.0,94191.0,0.10116913]
[1732137382528,0.08012054,94192.0,94191.0,0.10116913]
[1732137383326,0.02708854,94192.0,94191.0,0.46196913]
[1732137383631,0.0102804,94192.0,94191.0,0.46196913]
[1732137383929,0.0102804,94192.0,94191.0,0.49396913]
[1732137384726,0.1,94200.0,94191.0,0.49396913]
[1732137384924,0.1,94200.0,94199.0,0.053028]
[1732137385227,0.153028,94200.0,94199.0,0.053028]
[1732137385427,0.053029,94198.0,94197.0,0.10116913]
[1732137385929,0.06335861,94198.0,94197.0,0.15419813]
[1732137386118,0.1,94200.0,94199.0,0.053028]
[1732137386433,0.11033238,94200.0,94199.0,0.413828]
[1732137387428,0.11033238,94200.0,94199.0,0.445828]
[1732137388031,0.11037874,94200.0,94199.0,0.445828]
[1732137388730,0.11037874,94200.0,94199.0,0.454318]
[1732137389121,0.11037874,94200.0,94199.0,0.772798]
[1732137389437,0.0049,94212.0,94211.0,0.053021]
[1732137389627,0.3608,94218.0,94216.0,0.053019]
[1732137389628,0.053018,94217.0,94216.0,0.053019]
[1732137390830,0.0469437,94218.0,94217.0,0.053018]
[1732137391036,0.15792646,94224.0,94217.0,0.10116913]
[1732137391329,0.053013,94226.0,94224.0,0.053014]
[1732137391531,0.053013,94226.0,94223.0,0.10116913]
[1732137391532,0.053014,94224.0,94223.0,0.10116913]
[1732137391733,0.053014,94224.0,94223.0,0.15418413]
[1732137391928,0.18073211,94231.0,94230.0,0.053011]
[1732137391929,0.21252991,94231.0,94230.0,0.053011]
[1732137392131,0.00159245,94231.0,94230.0,0.15418013]
[1732137392325,0.00159245,94231.0,94224.0,0.3608]
[1732137392526,0.00159245,94231.0,94230.0,0.15418013]
[1732137393229,0.0460313,94232.0,94230.0,0.10116913]
[1732137393437,0.053009,94233.0,94230.0,0.10116913]
[1732137393729,0.053009,94233.0,94232.0,0.05301]
[1732137394335,0.0322,94239.0,94230.0,0.10116913]
[1732137394638,0.053017,94219.0,94218.0,0.053017]
[1732137396635,0.053021,94215.0,94214.0,0.05302]
[1732137397230,0.3608,94230.0,94214.0,0.3608]
[1732137397427,0.053017,94220.0,94219.0,0.053016]
[1732137398442,0.053017,94220.0,94214.0,0.46196913]
[1732137398443,0.053019,94215.0,94214.0,0.51498913]
[1732137399831,0.053016,94221.0,94220.0,0.053015]
[1732137401332,0.06323502,94221.0,94220.0,0.061505]
[1732137401832,0.02048459,94221.0,94220.0,0.061505]
[1732137402037,0.01026557,94221.0,94220.0,0.16267413]
[1732137402629,0.0049,94239.0,94221.0,0.053016]
[1732137402842,0.05154038,94240.0,94239.0,0.053006]
[1732137403142,0.06178376,94240.0,94239.0,0.413806]
[1732137403941,0.05154038,94240.0,94239.0,0.413806]
[1732137404134,0.50140001,94241.0,94239.0,0.3608]
[1732137404334,0.5,94241.0,94240.0,0.053005]
[1732137404644,0.5,94241.0,94240.0,0.084105]
[1732137405060,0.5,94241.0,94240.0,0.116105]
[1732137411045,0.5,94241.0,94240.0,0.148005]
[1732137415043,0.5,94241.0,94240.0,0.466325]
[1732137415236,0.0049,94257.0,94240.0,0.466325]
[1732137415443,0.0049,94266.0,94256.0,0.15416513]
[1732137415742,0.01018217,94261.0,94256.0,0.15416513]
[1732137415942,0.01018217,94260.0,94256.0,0.15416513]
[1732137416243,0.0301,94268.0,94258.0,0.052995]
[1732137416244,0.01018217,94259.0,94258.0,0.052995]
[1732137417042,0.10079736,94265.0,94261.0,0.052993]
[1732137417436,0.0301,94268.0,94261.0,0.052993]
[1732137417643,0.052989,94269.0,94268.0,0.052988]
[1732137417838,0.01031142,94269.0,94268.0,0.052988]
[1732137418243,0.01031142,94269.0,94262.0,0.10116913]
[1732137418244,0.04649228,94270.0,94262.0,0.10116913]
[1732137418442,0.02121369,94272.0,94262.0,0.10116913]
[1732137418650,0.02121369,94272.0,94271.0,0.052988]
[1732137419050,0.03150264,94272.0,94271.0,0.052988]
[1732137419254,0.031,94275.0,94274.0,0.052986]
[1732137419456,0.07707692,94275.0,94274.0,0.052986]
[1732137419638,0.031,94275.0,94274.0,0.052986]
[1732137419843,0.04126128,94275.0,94274.0,0.052986]
[1732137420149,0.04126128,94275.0,94274.0,0.15415513]
[1732137420405,0.15923877,94286.0,94285.0,0.05298]
[1732137420556,0.01026344,94286.0,94285.0,0.05298]
[1732137421064,0.0314,94290.0,94289.0,0.052978]
[1732137421554,0.041665,94290.0,94289.0,0.052978]
[1732137421946,0.0314,94290.0,94289.0,0.052978]
[1732137422250,0.0352,94303.0,94299.0,0.052972]
[1732137422456,0.1102342,94300.0,94299.0,0.052972]
[1732137422940,0.0602342,94300.0,94299.0,0.052972]
[1732137423138,0.0049,94317.0,94308.0,0.052967]
[1732137423343,0.51863876,94320.0,94315.0,0.052963]
[1732137423344,0.01023411,94316.0,94315.0,0.052963]
[1732137424756,0.10116913,94315.0,94309.0,0.052966]
[1732137424953,0.10116913,94309.0,94308.0,0.052967]
[1732137425160,0.01023411,94309.0,94308.0,0.052967]
[1732137425355,0.01023411,94309.0,94296.0,0.169413]
[1732137425356,0.01031069,94313.0,94296.0,0.11644]
[1732137425558,0.01031069,94312.0,94309.0,0.052966]
[1732137425755,0.01031069,94311.0,94296.0,0.15414313]
[1732137426060,0.01031069,94311.0,94295.0,0.3608]
[1732137426061,0.01031069,94311.0,94310.0,0.052966]
[1732137426548,0.01031069,94311.0,94297.0,0.061453]
[1732137426751,0.13336913,94315.0,94314.0,0.052964]
[1732137426952,0.16046397,94315.0,94314.0,0.052964]
[1732137427460,0.47854397,94315.0,94297.0,0.061453]
[1732137427766,0.052965,94312.0,94311.0,0.052965]
[1732137427955,0.02709484,94312.0,94311.0,0.052965]
[1732137428557,0.01042109,94312.0,94311.0,0.386765]
[1732137429449,0.01042109,94312.0,94311.0,0.43253931]
[1732137429648,0.01042109,94318.0,94311.0,0.43253931]
[1732137429850,0.07964323,94326.0,94325.0,0.052957]
[1732137430149,0.1071177,94326.0,94325.0,0.052957]
[1732137430347,0.02747447,94326.0,94325.0,0.052957]
[1732137431048,0.02747447,94326.0,94317.0,0.052962]
[1732137431049,0.43715158,94328.0,94327.0,0.052956]
[1732137431253,0.10395016,94328.0,94327.0,0.052956]
[1732137431753,0.07355016,94328.0,94327.0,0.052956]
[1732137432256,0.12650616,94328.0,94327.0,0.052956]
[1732137432449,0.07355016,94328.0,94312.0,0.10116913]
[1732137432749,0.02119563,94334.0,94326.0,0.052957]
[1732137432750,0.02759858,94327.0,94326.0,0.052957]
[1732137433354,0.08055458,94327.0,94326.0,0.052957]
[1732137434762,0.02759858,94327.0,94311.0,0.46196913]
[1732137434966,0.04763624,94329.0,94311.0,0.3608]
[1732137434967,0.12876771,94326.0,94311.0,0.3608]
[1732137435164,0.05296,94320.0,94319.0,0.05296]
[1732137435362,0.08045011,94320.0,94319.0,0.05296]
[1732137435987,0.052963,94315.0,94314.0,0.052963]
[1732137436161,0.08045311,94315.0,94314.0,0.052963]
[1732137436962,0.052963,94315.0,94314.0,0.052963]
[1732137437162,0.08031765,94315.0,94314.0,0.052963]
[1732137440263,0.3608,94321.0,94319.0,0.05296]
[1732137440264,0.052961,94320.0,94319.0,0.05296]
[1732137440469,0.052961,94320.0,94314.0,0.052963]
[1732137440470,0.3608,94321.0,94320.0,0.05296]
[1732137440665,0.37135482,94321.0,94320.0,0.05296]
[1732137440974,0.38815179,94321.0,94320.0,0.05296]
[1732137443663,0.38826144,94321.0,94320.0,0.05296]
[1732137445566,0.02746144,94321.0,94320.0,0.05296]
[1732137446772,0.07894974,94321.0,94320.0,0.05296]
[1732137447073,0.07894974,94321.0,94320.0,0.06144]
[1732137449162,0.13190974,94321.0,94320.0,0.00848]
[1732137449369,0.29215224,94321.0,94320.0,0.06144]
[1732137449871,0.39332137,94321.0,94320.0,0.00848]
[1732137450075,0.052966,94309.0,94308.0,0.04]
[1732137450372,0.49271574,94309.0,94308.0,0.04]